[Event "*** Titled Tuesday Blitz"]
[Site "Chess.com"]
[Date "2020.12.29"]
[Round "3"]
[White "tigra"]
[Black "JustKid"]
[Result "1-0"]
[WhiteElo "2825"]
[BlackElo "2605"]
[TimeControl "180+1"]
[EndTime "10:27:38 PST"]
[Termination "tigra won by resignation"]

1. Nf3 {[%clk 0:02:59.6]} 1... d5 {[%clk 0:03:00.1]} 2. c4 {[%clk 0:02:58.3]}
2... e6 {[%clk 0:03:00.7]} 3. b3 {[%clk 0:02:58.7]} 3... c5 {[%clk 0:03:01.3]}
4. cxd5 {[%clk 0:02:58.2]} 4... exd5 {[%clk 0:03:02.2]} 5. d4 {[%clk 0:02:59]}
5... Nc6 {[%clk 0:03:01.3]} 6. e3 {[%clk 0:02:59.3]} 6... Nf6 {[%clk 0:02:59.9]}
7. Be2 {[%clk 0:02:59.5]} 7... Be7 {[%clk 0:02:59.9]} 8. O-O {[%clk 0:02:59.4]}
8... O-O {[%clk 0:03:00.5]} 9. Bb2 {[%clk 0:02:59.8]} 9... Re8 {[%clk
0:02:58.8]} 10. Nc3 {[%clk 0:02:59.1]} 10... Bg4 {[%clk 0:02:53.3]} 11. dxc5
{[%clk 0:02:56.1]} 11... Bxc5 {[%clk 0:02:54.2]} 12. Rc1 {[%clk 0:02:55.7]}
12... Bf8 {[%clk 0:02:50]} 13. Nb5 {[%clk 0:02:49.7]} 13... Ne4 {[%clk 0:02:45]}
14. h3 {[%clk 0:02:49.5]} 14... Be6 {[%clk 0:02:38.8]} 15. Nbd4 {[%clk
0:02:43.7]} 15... Bd7 {[%clk 0:02:39]} 16. Nxc6 {[%clk 0:02:43.5]} 16... bxc6
{[%clk 0:02:35.8]} 17. Ne5 {[%clk 0:02:43.2]} 17... Rc8 {[%clk 0:02:10.8]} 18.
Bg4 {[%clk 0:02:16.7]} 18... Bxg4 {[%clk 0:02:02.7]} 19. Qxg4 {[%clk 0:02:17.6]}
19... Qd6 {[%clk 0:02:02.8]} 20. Rfd1 {[%clk 0:02:11.7]} 20... Rc7 {[%clk
0:01:51.7]} 21. Nf3 {[%clk 0:02:07.1]} 21... a5 {[%clk 0:01:42.8]} 22. g3 {[%clk
0:01:49]} 22... h6 {[%clk 0:01:42]} 23. Kg2 {[%clk 0:01:47.8]} 23... Re6 {[%clk
0:01:36.7]} 24. Qf4 {[%clk 0:01:39.5]} 24... Qxf4 {[%clk 0:01:28.3]} 25. exf4
{[%clk 0:01:37.1]} 25... Bc5 {[%clk 0:01:06.8]} 26. Bd4 {[%clk 0:01:24.6]} 26...
Bxd4 {[%clk 0:01:02.4]} 27. Nxd4 {[%clk 0:01:25.5]} 27... Rf6 {[%clk 0:00:54.9]}
28. f3 {[%clk 0:01:24.7]} 28... Nd6 {[%clk 0:00:39.5]} 29. Rxc6 {[%clk
0:01:10.6]} 29... Rxc6 {[%clk 0:00:38.6]} 30. Nxc6 {[%clk 0:01:11.5]} 30... Nf5
{[%clk 0:00:38.3]} 31. Rc1 {[%clk 0:01:11.8]} 31... Re6 {[%clk 0:00:23]} 32. Kf2
{[%clk 0:01:08.5]} 32... d4 {[%clk 0:00:17.9]} 33. g4 {[%clk 0:01:07.8]} 33...
Ne7 {[%clk 0:00:10.4]} 34. Nxd4 {[%clk 0:01:07]} 34... Rd6 {[%clk 0:00:10.8]}
35. Rc4 {[%clk 0:01:02]} 35... Nd5 {[%clk 0:00:10.5]} 36. Nf5 {[%clk 0:00:59.2]}
36... Rd8 {[%clk 0:00:10]} 37. Rd4 {[%clk 0:00:58.8]} 37... Kf8 {[%clk
0:00:10.6]} 38. Ne3 {[%clk 0:00:58.7]} 1-0

[Event "*** Titled Tuesday Blitz"]
[Site "Chess.com"]
[Date "2020.12.29"]
[Round "3"]
[White "SARGISMV"]
[Black "carloseduar100"]
[Result "0-1"]
[WhiteElo "2460"]
[BlackElo "2107"]
[TimeControl "180+1"]
[EndTime "10:27:38 PST"]
[Termination "carloseduar100 won by resignation"]

1. d4 {[%clk 0:02:56.4]} 1... d5 {[%clk 0:02:59.9]} 2. c4 {[%clk 0:02:52.5]}
2... e5 {[%clk 0:02:59.5]} 3. dxe5 {[%clk 0:02:47.6]} 3... d4 {[%clk 0:02:59]}
4. Nf3 {[%clk 0:02:40.7]} 4... Nc6 {[%clk 0:02:58.3]} 5. a3 {[%clk 0:02:27.8]}
5... Nge7 {[%clk 0:02:57.8]} 6. Nbd2 {[%clk 0:02:19.6]} 6... Bg4 {[%clk
0:02:55.5]} 7. b4 {[%clk 0:02:01.3]} 7... Ng6 {[%clk 0:02:55.2]} 8. Bb2 {[%clk
0:01:51.3]} 8... Ngxe5 {[%clk 0:02:47.7]} 9. Qb3 {[%clk 0:01:30.8]} 9... Bxf3
{[%clk 0:02:33.3]} 10. Nxf3 {[%clk 0:01:25.1]} 10... Nxf3+ {[%clk 0:02:33.1]}
11. gxf3 {[%clk 0:01:19.3]} 11... Qd7 {[%clk 0:02:19.7]} 12. O-O-O {[%clk
0:01:13.2]} 12... O-O-O {[%clk 0:02:19.5]} 13. h4 {[%clk 0:01:06.5]} 13... Kb8
{[%clk 0:02:17.4]} 14. e3 {[%clk 0:00:56.5]} 14... Qf5 {[%clk 0:02:15.4]} 15.
exd4 {[%clk 0:00:54.5]} 15... Qf4+ {[%clk 0:02:10.6]} 16. Qe3 {[%clk 0:00:54.1]}
16... Bd6 {[%clk 0:02:00.7]} 17. d5 {[%clk 0:00:52.4]} 17... Rhe8 {[%clk
0:01:59.7]} 18. Qxf4 {[%clk 0:00:49.5]} 18... Bxf4+ {[%clk 0:02:00.6]} 19. Kc2
{[%clk 0:00:48.8]} 19... Ne5 {[%clk 0:02:01.1]} 20. Bxe5 {[%clk 0:00:40.9]}
20... Rxe5 {[%clk 0:02:00.9]} 21. Bd3 {[%clk 0:00:41.1]} 21... Rde8 {[%clk
0:01:52.5]} 22. Rdg1 {[%clk 0:00:39.1]} 22... g6 {[%clk 0:01:49.6]} 23. h5
{[%clk 0:00:37.9]} 23... b5 {[%clk 0:01:42.9]} 24. hxg6 {[%clk 0:00:33.2]} 24...
hxg6 {[%clk 0:01:40.7]} 25. Rh7 {[%clk 0:00:25.1]} 25... bxc4 {[%clk 0:01:39.4]}
26. Bxc4 {[%clk 0:00:26]} 26... R8e7 {[%clk 0:01:29.2]} 27. Kb3 {[%clk
0:00:25.7]} 27... Kb7 {[%clk 0:01:25.9]} 28. Rd1 {[%clk 0:00:23.7]} 28... Rf5
{[%clk 0:01:22.6]} 29. Bb5 {[%clk 0:00:23.2]} 29... Be5 {[%clk 0:01:09.8]} 30.
Bc6+ {[%clk 0:00:22.8]} 30... Kb6 {[%clk 0:01:10.1]} 31. Rh8 {[%clk 0:00:23.4]}
31... Bxh8 {[%clk 0:01:09.8]} 32. a4 {[%clk 0:00:22.2]} 32... Rxf3+ {[%clk
0:01:07.4]} 33. Ka2 {[%clk 0:00:21.5]} 33... Re2+ {[%clk 0:01:06.6]} 34. Kb1
{[%clk 0:00:20.5]} 34... Rb3+ {[%clk 0:01:02.9]} 35. Kc1 {[%clk 0:00:20.7]}
35... Rxb4 {[%clk 0:00:56.6]} 0-1

[Event "*** Titled Tuesday Blitz"]
[Site "Chess.com"]
[Date "2020.12.29"]
[Round "3"]
[White "1g41-0"]
[Black "dretch"]
[Result "0-1"]
[WhiteElo "2616"]
[BlackElo "2842"]
[TimeControl "180+1"]
[EndTime "10:27:40 PST"]
[Termination "dretch won by resignation"]

1. d4 {[%clk 0:03:00.9]} 1... d5 {[%clk 0:02:58.4]} 2. c4 {[%clk 0:03:01.2]}
2... c6 {[%clk 0:02:58.2]} 3. Nc3 {[%clk 0:03:01.6]} 3... dxc4 {[%clk
0:02:55.8]} 4. e4 {[%clk 0:02:55.7]} 4... b5 {[%clk 0:02:54.2]} 5. Nf3 {[%clk
0:02:55.4]} 5... Nf6 {[%clk 0:02:53.2]} 6. e5 {[%clk 0:02:54.3]} 6... Nd5 {[%clk
0:02:53.1]} 7. a4 {[%clk 0:02:53.1]} 7... e6 {[%clk 0:02:50.3]} 8. Be2 {[%clk
0:02:51.9]} 8... Be7 {[%clk 0:02:49.1]} 9. O-O {[%clk 0:02:51.6]} 9... Bb7
{[%clk 0:02:46.7]} 10. Ne4 {[%clk 0:02:35.4]} 10... h6 {[%clk 0:02:42.6]} 11. b3
{[%clk 0:02:34]} 11... c3 {[%clk 0:02:15.4]} 12. axb5 {[%clk 0:02:31.8]} 12...
O-O {[%clk 0:02:15]} 13. Ba3 {[%clk 0:02:13.3]} 13... Bxa3 {[%clk 0:02:08.5]}
14. Rxa3 {[%clk 0:02:14.2]} 14... cxb5 {[%clk 0:02:08.7]} 15. Bxb5 {[%clk
0:02:13.7]} 15... Qb6 {[%clk 0:01:46.3]} 16. Nd6 {[%clk 0:02:03.4]} 16... Nb4
{[%clk 0:01:29.5]} 17. Bc4 {[%clk 0:01:38.1]} 17... c2 {[%clk 0:01:22.9]} 18.
Qe2 {[%clk 0:01:28.2]} 18... Bxf3 {[%clk 0:01:22.1]} 19. Qxf3 {[%clk 0:01:23.5]}
19... N8c6 {[%clk 0:01:22.5]} 20. Nxf7 {[%clk 0:00:57.4]} 20... Nxd4 {[%clk
0:01:20.8]} 21. Nxh6+ {[%clk 0:00:56.7]} 21... gxh6 {[%clk 0:01:20.4]} 22. Qg4+
{[%clk 0:00:45.1]} 22... Kh7 {[%clk 0:01:19.9]} 23. Qe4+ {[%clk 0:00:38.3]}
23... Kh8 {[%clk 0:01:13.1]} 24. Qh4 {[%clk 0:00:35.4]} 24... Nf5 {[%clk
0:01:12.5]} 25. Qe4 {[%clk 0:00:28.7]} 25... Rad8 {[%clk 0:00:59.6]} 26. Raa1
{[%clk 0:00:20.7]} 26... Qd4 {[%clk 0:00:50.8]} 27. Qb7 {[%clk 0:00:19]} 27...
Qxa1 {[%clk 0:00:28.9]} 28. Rxa1 {[%clk 0:00:19.9]} 28... Rd1+ {[%clk
0:00:28.5]} 29. Bf1 {[%clk 0:00:20.6]} 29... Rxa1 {[%clk 0:00:27.6]} 30. Qxb4
{[%clk 0:00:21.2]} 30... Rxf1+ {[%clk 0:00:26.4]} 0-1

[Event "*** Titled Tuesday Blitz"]
[Site "Chess.com"]
[Date "2020.12.29"]
[Round "3"]
[White "sorrm8thatscheckm8"]
[Black "norwaytoadog"]
[Result "1-0"]
[WhiteElo "2498"]
[BlackElo "2200"]
[TimeControl "180+1"]
[EndTime "10:27:48 PST"]
[Termination "sorrm8thatscheckm8 won on time"]

1. d4 {[%clk 0:03:00.9]} 1... d5 {[%clk 0:02:59.9]} 2. c4 {[%clk 0:02:59.8]}
2... c6 {[%clk 0:03:00.2]} 3. cxd5 {[%clk 0:02:58.7]} 3... cxd5 {[%clk 0:03:00]}
4. Nc3 {[%clk 0:02:59.6]} 4... Nf6 {[%clk 0:02:59.6]} 5. f3 {[%clk 0:02:59.2]}
5... a6 {[%clk 0:02:50.3]} 6. e4 {[%clk 0:02:58.5]} 6... dxe4 {[%clk 0:02:49.2]}
7. fxe4 {[%clk 0:02:58.6]} 7... e5 {[%clk 0:02:48.4]} 8. dxe5 {[%clk 0:02:54.1]}
8... Ng4 {[%clk 0:02:43.1]} 9. Qxd8+ {[%clk 0:02:52.1]} 9... Kxd8 {[%clk
0:02:43.4]} 10. Nf3 {[%clk 0:02:53]} 10... Nc6 {[%clk 0:02:39.8]} 11. Bg5+
{[%clk 0:02:51.9]} 11... Be7 {[%clk 0:02:39]} 12. O-O-O+ {[%clk 0:02:51.2]}
12... Ke8 {[%clk 0:02:37.9]} 13. Bxe7 {[%clk 0:02:50.7]} 13... Nxe7 {[%clk
0:02:33.9]} 14. Rd2 {[%clk 0:02:47.6]} 14... Be6 {[%clk 0:02:15]} 15. h3 {[%clk
0:02:43.8]} 15... Ne3 {[%clk 0:02:14.7]} 16. Bd3 {[%clk 0:02:36.6]} 16... Rc8
{[%clk 0:02:08]} 17. Re1 {[%clk 0:02:05.1]} 17... Nc4 {[%clk 0:01:59.2]} 18.
Bxc4 {[%clk 0:02:02.6]} 18... Bxc4 {[%clk 0:01:56.3]} 19. Kb1 {[%clk 0:02:02.8]}
19... b5 {[%clk 0:01:43.7]} 20. Nd5 {[%clk 0:01:58]} 20... h5 {[%clk 0:00:54.6]}
21. b3 {[%clk 0:01:52.8]} 21... Bxd5 {[%clk 0:00:53.8]} 22. exd5 {[%clk
0:01:53.7]} 22... Rd8 {[%clk 0:00:49]} 23. d6 {[%clk 0:01:50.4]} 23... Nc6
{[%clk 0:00:48.1]} 24. Ng5 {[%clk 0:01:35.1]} 24... h4 {[%clk 0:00:42.3]} 25. e6
{[%clk 0:01:33.9]} 25... fxe6 {[%clk 0:00:40.9]} 26. Nxe6 {[%clk 0:01:34.8]}
26... Kf7 {[%clk 0:00:32]} 27. Rf2+ {[%clk 0:01:27.9]} 27... Kg6 {[%clk
0:00:30.2]} 28. Nxd8 {[%clk 0:01:27.9]} 28... Rxd8 {[%clk 0:00:30]} 29. d7
{[%clk 0:01:26.4]} 29... Nd4 {[%clk 0:00:25.8]} 30. Rd2 {[%clk 0:00:54.2]} 30...
Nf5 {[%clk 0:00:09.9]} 31. Re8 {[%clk 0:00:51.7]} 1-0

[Event "*** Titled Tuesday Blitz"]
[Site "Chess.com"]
[Date "2020.12.29"]
[Round "3"]
[White "AlleyOoper"]
[Black "jacky72"]
[Result "1-0"]
[WhiteElo "2617"]
[BlackElo "2798"]
[TimeControl "180+1"]
[EndTime "10:27:51 PST"]
[Termination "AlleyOoper won by checkmate"]

1. d4 {[%clk 0:03:00.9]} 1... Nf6 {[%clk 0:02:59.6]} 2. Nc3 {[%clk 0:02:45.8]}
2... d5 {[%clk 0:02:59]} 3. Bf4 {[%clk 0:02:46.2]} 3... e6 {[%clk 0:02:56.8]} 4.
Nb5 {[%clk 0:02:45.5]} 4... Na6 {[%clk 0:02:56.7]} 5. a3 {[%clk 0:02:45.9]} 5...
c6 {[%clk 0:02:56.9]} 6. Nc3 {[%clk 0:02:45.9]} 6... Bd6 {[%clk 0:02:57.4]} 7.
e3 {[%clk 0:02:46.4]} 7... O-O {[%clk 0:02:55.7]} 8. Nf3 {[%clk 0:02:46.5]} 8...
Nc7 {[%clk 0:02:55.3]} 9. Bd3 {[%clk 0:02:45.3]} 9... Bxf4 {[%clk 0:02:52.5]}
10. exf4 {[%clk 0:02:44.2]} 10... Qd6 {[%clk 0:02:53.4]} 11. Ne5 {[%clk
0:02:43.5]} 11... c5 {[%clk 0:02:46.2]} 12. dxc5 {[%clk 0:02:39.8]} 12... Qxc5
{[%clk 0:02:47.1]} 13. Qd2 {[%clk 0:02:40.1]} 13... b6 {[%clk 0:02:41.5]} 14.
O-O {[%clk 0:02:35.2]} 14... Ba6 {[%clk 0:02:41.6]} 15. b4 {[%clk 0:02:32.1]}
15... Qe7 {[%clk 0:02:29.9]} 16. b5 {[%clk 0:02:28.7]} 16... Bb7 {[%clk
0:02:30.4]} 17. Ne2 {[%clk 0:02:17.7]} 17... Nd7 {[%clk 0:02:19.7]} 18. Nd4
{[%clk 0:02:14]} 18... Nc5 {[%clk 0:02:10.1]} 19. Rfe1 {[%clk 0:01:53.8]} 19...
a6 {[%clk 0:02:04.5]} 20. a4 {[%clk 0:01:39.7]} 20... Qd6 {[%clk 0:02:04]} 21.
Qe3 {[%clk 0:01:29.8]} 21... axb5 {[%clk 0:01:57.1]} 22. axb5 {[%clk 0:01:28]}
22... Ne4 {[%clk 0:01:49]} 23. Rad1 {[%clk 0:01:19.7]} 23... Ra3 {[%clk
0:01:42.7]} 24. Qh3 {[%clk 0:01:15.9]} 24... f5 {[%clk 0:01:39.5]} 25. Re3
{[%clk 0:01:01.5]} 25... Rfa8 {[%clk 0:01:32]} 26. Nxf5 {[%clk 0:00:29.5]} 26...
exf5 {[%clk 0:01:29.5]} 27. Qxf5 {[%clk 0:00:29.4]} 27... Qe6 {[%clk 0:01:22.5]}
28. Bxe4 {[%clk 0:00:17.3]} 28... Rxe3 {[%clk 0:01:19]} 29. Qxh7+ {[%clk
0:00:16.6]} 29... Kf8 {[%clk 0:01:19.3]} 30. Qh8+ {[%clk 0:00:11.6]} 30... Ke7
{[%clk 0:01:19.8]} 31. Qxg7+ {[%clk 0:00:12.1]} 31... Kd6 {[%clk 0:01:20.3]} 32.
Nc4+ {[%clk 0:00:08.8]} 32... Kc5 {[%clk 0:01:20]} 33. Qxc7+ {[%clk 0:00:09.3]}
33... Kxb5 {[%clk 0:01:19.2]} 34. Nd6+ {[%clk 0:00:07.6]} 34... Qxd6 {[%clk
0:01:15.6]} 35. Qxd6 {[%clk 0:00:07.1]} 35... Rxe4 {[%clk 0:01:14.6]} 36. h3
{[%clk 0:00:05.9]} 36... Rae8 {[%clk 0:01:05.6]} 37. Rb1+ {[%clk 0:00:05]} 37...
Kc4 {[%clk 0:01:04.8]} 38. Qxb6 {[%clk 0:00:05.4]} 38... Kc3 {[%clk 0:01:02.1]}
39. Qb3+ {[%clk 0:00:04.9]} 39... Kd2 {[%clk 0:01:02.1]} 40. Qd3# {[%clk
0:00:05.3]} 1-0

[Event "*** Titled Tuesday Blitz"]
[Site "Chess.com"]
[Date "2020.12.29"]
[Round "3"]
[White "chessablanca"]
[Black "platy3"]
[Result "0-1"]
[WhiteElo "2614"]
[BlackElo "2839"]
[TimeControl "180+1"]
[EndTime "10:27:54 PST"]
[Termination "platy3 won by resignation"]

1. Nf3 {[%clk 0:03:00.9]} 1... Nf6 {[%clk 0:02:59.4]} 2. g3 {[%clk 0:03:00.4]}
2... d5 {[%clk 0:02:56.3]} 3. Bg2 {[%clk 0:02:59.9]} 3... c5 {[%clk 0:02:56.8]}
4. O-O {[%clk 0:02:59.1]} 4... e6 {[%clk 0:02:57]} 5. e3 {[%clk 0:02:59]} 5...
Nc6 {[%clk 0:02:55.1]} 6. c4 {[%clk 0:02:53.7]} 6... dxc4 {[%clk 0:02:51.6]} 7.
Qa4 {[%clk 0:02:44.8]} 7... Bd6 {[%clk 0:02:37.3]} 8. Nc3 {[%clk 0:02:40.3]}
8... O-O {[%clk 0:02:36.9]} 9. Qxc4 {[%clk 0:02:40.2]} 9... a6 {[%clk
0:02:36.2]} 10. d4 {[%clk 0:02:31.7]} 10... b5 {[%clk 0:02:27]} 11. Qe2 {[%clk
0:02:30.8]} 11... Bb7 {[%clk 0:02:25.6]} 12. Rd1 {[%clk 0:02:26.7]} 12... Qe7
{[%clk 0:02:21.7]} 13. dxc5 {[%clk 0:02:04.7]} 13... Bxc5 {[%clk 0:02:22.6]} 14.
e4 {[%clk 0:02:05.2]} 14... Ng4 {[%clk 0:02:20.7]} 15. Rf1 {[%clk 0:01:52.4]}
15... Rfd8 {[%clk 0:02:19.9]} 16. Bf4 {[%clk 0:01:41.8]} 16... Rac8 {[%clk
0:02:04]} 17. h3 {[%clk 0:01:33.1]} 17... Nf6 {[%clk 0:02:03.4]} 18. Rad1 {[%clk
0:01:31.7]} 18... Nh5 {[%clk 0:02:02.2]} 19. Be3 {[%clk 0:01:28.2]} 19... Nf6
{[%clk 0:02:00.5]} 20. e5 {[%clk 0:01:17.8]} 20... Nd7 {[%clk 0:01:49.6]} 21.
Bg5 {[%clk 0:01:01.7]} 21... f6 {[%clk 0:01:49.5]} 22. Bh4 {[%clk 0:01:00.3]}
22... Ncxe5 {[%clk 0:01:35.6]} 23. Nxe5 {[%clk 0:00:59.5]} 23... Nxe5 {[%clk
0:01:23.2]} 24. Rxd8+ {[%clk 0:00:52.8]} 24... Rxd8 {[%clk 0:01:22.3]} 25. Qxe5
{[%clk 0:00:52.2]} 25... Bxg2 {[%clk 0:01:21.7]} 26. Kxg2 {[%clk 0:00:52.1]}
26... fxe5 {[%clk 0:01:17.7]} 27. Bxe7 {[%clk 0:00:53]} 27... Bxe7 {[%clk
0:01:18.3]} 28. Re1 {[%clk 0:00:53.7]} 28... Rd2 {[%clk 0:01:17]} 29. Rxe5
{[%clk 0:00:53.6]} 29... Rxb2 {[%clk 0:01:12.6]} 30. Rxe6 {[%clk 0:00:53.8]}
30... Bf6 {[%clk 0:01:06.1]} 31. Ne4 {[%clk 0:00:53.6]} 31... Rxa2 {[%clk
0:01:05.4]} 32. Nxf6+ {[%clk 0:00:31.1]} 32... gxf6 {[%clk 0:01:05.1]} 33. Rxf6
{[%clk 0:00:32]} 33... b4 {[%clk 0:01:05.2]} 34. Rb6 {[%clk 0:00:30.4]} 34... a5
{[%clk 0:01:05.3]} 35. g4 {[%clk 0:00:30.9]} 35... Ra3 {[%clk 0:01:01.8]} 36. h4
{[%clk 0:00:29.1]} 36... b3 {[%clk 0:01:01.6]} 37. f4 {[%clk 0:00:24.8]} 37...
a4 {[%clk 0:01:01.7]} 38. f5 {[%clk 0:00:24.9]} 38... Ra2+ {[%clk 0:01:01.7]}
39. Kf3 {[%clk 0:00:25.2]} 39... b2 {[%clk 0:01:02.2]} 40. g5 {[%clk 0:00:21.2]}
40... Ra3+ {[%clk 0:01:02]} 41. Kf4 {[%clk 0:00:19.7]} 41... Rb3 {[%clk
0:01:02.9]} 42. Ra6 {[%clk 0:00:17.5]} 42... b1=Q {[%clk 0:01:02.4]} 43. f6
{[%clk 0:00:17.3]} 43... Rb4+ {[%clk 0:01:01.5]} 44. Ke5 {[%clk 0:00:17.3]}
44... Qe4+ {[%clk 0:01:01.5]} 0-1

[Event "*** Titled Tuesday Blitz"]
[Site "Chess.com"]
[Date "2020.12.29"]
[Round "3"]
[White "Nafania1"]
[Black "UCantHandleDenker"]
[Result "0-1"]
[WhiteElo "2381"]
[BlackElo "2582"]
[TimeControl "180+1"]
[EndTime "10:27:54 PST"]
[Termination "UCantHandleDenker won by checkmate"]

1. e4 {[%clk 0:03:00.9]} 1... d6 {[%clk 0:02:59.7]} 2. d4 {[%clk 0:03:00.6]}
2... Nf6 {[%clk 0:03:00.2]} 3. Bd3 {[%clk 0:03:01]} 3... g6 {[%clk 0:02:59.9]}
4. Nf3 {[%clk 0:03:00.8]} 4... Bg7 {[%clk 0:03:00.2]} 5. O-O {[%clk 0:03:01]}
5... O-O {[%clk 0:03:00.7]} 6. Re1 {[%clk 0:03:01.1]} 6... Nc6 {[%clk
0:02:58.1]} 7. c3 {[%clk 0:03:01.1]} 7... e5 {[%clk 0:02:57.6]} 8. h3 {[%clk
0:03:01.6]} 8... Bd7 {[%clk 0:02:56.2]} 9. Na3 {[%clk 0:03:00.8]} 9... a6 {[%clk
0:02:56.3]} 10. Nc2 {[%clk 0:02:56.7]} 10... Re8 {[%clk 0:02:55.5]} 11. d5
{[%clk 0:02:33.6]} 11... Ne7 {[%clk 0:02:54]} 12. c4 {[%clk 0:02:29.2]} 12... h6
{[%clk 0:02:46.6]} 13. Be3 {[%clk 0:02:17]} 13... Kh8 {[%clk 0:02:29.2]} 14. Rc1
{[%clk 0:02:13.2]} 14... b6 {[%clk 0:02:21.3]} 15. b4 {[%clk 0:02:13.1]} 15...
a5 {[%clk 0:02:20.6]} 16. a3 {[%clk 0:02:13.2]} 16... axb4 {[%clk 0:02:14.7]}
17. axb4 {[%clk 0:02:13.4]} 17... Neg8 {[%clk 0:02:15.2]} 18. c5 {[%clk
0:02:11.6]} 18... bxc5 {[%clk 0:02:14.6]} 19. bxc5 {[%clk 0:02:12]} 19... Nh7
{[%clk 0:02:00.2]} 20. cxd6 {[%clk 0:02:03.1]} 20... cxd6 {[%clk 0:01:59.8]} 21.
Nb4 {[%clk 0:02:03.6]} 21... f5 {[%clk 0:01:52.1]} 22. Nc6 {[%clk 0:02:03.7]}
22... Qf6 {[%clk 0:01:51.9]} 23. Rb1 {[%clk 0:01:56.3]} 23... f4 {[%clk
0:01:44.1]} 24. Bd2 {[%clk 0:01:54.9]} 24... g5 {[%clk 0:01:43.8]} 25. Nh2
{[%clk 0:01:43.7]} 25... Qg6 {[%clk 0:01:42.1]} 26. Rb7 {[%clk 0:01:30.9]} 26...
Nhf6 {[%clk 0:01:41.7]} 27. Ng4 {[%clk 0:01:26]} 27... Bc8 {[%clk 0:01:40.3]}
28. Rc7 {[%clk 0:01:22.2]} 28... h5 {[%clk 0:01:35.7]} 29. Nxf6 {[%clk
0:01:21.8]} 29... Bxf6 {[%clk 0:01:34]} 30. f3 {[%clk 0:01:05.7]} 30... g4
{[%clk 0:01:32.6]} 31. hxg4 {[%clk 0:01:06.1]} 31... hxg4 {[%clk 0:01:32.7]} 32.
fxg4 {[%clk 0:01:05.4]} 32... Bxg4 {[%clk 0:01:31.4]} 33. Be2 {[%clk 0:01:05.6]}
33... Nh6 {[%clk 0:01:28.1]} 34. Bxg4 {[%clk 0:01:00.6]} 34... Nxg4 {[%clk
0:01:17]} 35. Qf3 {[%clk 0:01:00.9]} 35... Rg8 {[%clk 0:00:58.9]} 36. Qh3+
{[%clk 0:01:00]} 36... Qh6 {[%clk 0:00:55.3]} 37. Qxh6+ {[%clk 0:00:57.2]} 37...
Nxh6 {[%clk 0:00:55.7]} 38. Rf1 {[%clk 0:00:51.5]} 38... Ra2 {[%clk 0:00:53.3]}
39. Rf2 {[%clk 0:00:37.6]} 39... Bh4 {[%clk 0:00:52.3]} 40. Be1 {[%clk
0:00:26.9]} 40... Bxf2+ {[%clk 0:00:44.9]} 41. Bxf2 {[%clk 0:00:27.1]} 41...
Ra1+ {[%clk 0:00:43.9]} 42. Kh2 {[%clk 0:00:27.3]} 42... Ng4+ {[%clk 0:00:44.1]}
43. Kh3 {[%clk 0:00:27.6]} 43... Rh1# {[%clk 0:00:42.3]} 0-1

[Event "*** Titled Tuesday Blitz"]
[Site "Chess.com"]
[Date "2020.12.29"]
[Round "3"]
[White "GMJustin"]
[Black "Euge_chess"]
[Result "0-1"]
[WhiteElo "2299"]
[BlackElo "2076"]
[TimeControl "180+1"]
[EndTime "10:27:54 PST"]
[Termination "Euge_chess won on time"]

1. e4 {[%clk 0:02:54]} 1... e5 {[%clk 0:02:59.4]} 2. d4 {[%clk 0:02:53.7]} 2...
exd4 {[%clk 0:02:58.6]} 3. c3 {[%clk 0:02:53.9]} 3... dxc3 {[%clk 0:02:58.2]} 4.
Bc4 {[%clk 0:02:53.8]} 4... d6 {[%clk 0:02:56.5]} 5. Nxc3 {[%clk 0:02:47.3]}
5... Nf6 {[%clk 0:02:55.5]} 6. Nge2 {[%clk 0:02:44.5]} 6... Be7 {[%clk
0:02:55.2]} 7. O-O {[%clk 0:02:42.5]} 7... O-O {[%clk 0:02:54.8]} 8. Nf4 {[%clk
0:02:35.3]} 8... Nc6 {[%clk 0:02:50.6]} 9. f3 {[%clk 0:02:25.9]} 9... Ne5 {[%clk
0:02:49]} 10. Bb3 {[%clk 0:02:22.2]} 10... c6 {[%clk 0:02:49.2]} 11. Be3 {[%clk
0:02:19.5]} 11... b5 {[%clk 0:02:37.6]} 12. a4 {[%clk 0:02:12.9]} 12... b4
{[%clk 0:02:35.1]} 13. Nce2 {[%clk 0:02:10.5]} 13... Ba6 {[%clk 0:02:29.8]} 14.
Rc1 {[%clk 0:01:51.2]} 14... g5 {[%clk 0:02:26.9]} 15. Nh3 {[%clk 0:01:44.2]}
15... h6 {[%clk 0:02:09.7]} 16. Qd2 {[%clk 0:01:41.7]} 16... d5 {[%clk 0:01:56]}
17. Bxg5 {[%clk 0:01:07]} 17... dxe4 {[%clk 0:01:49.9]} 18. Qxd8 {[%clk
0:00:42.3]} 18... Raxd8 {[%clk 0:01:40]} 19. Bxf6 {[%clk 0:00:38.5]} 19... Bxf6
{[%clk 0:01:40.2]} 20. fxe4 {[%clk 0:00:38.2]} 20... Bg7 {[%clk 0:01:31.2]} 21.
Nhf4 {[%clk 0:00:33.8]} 21... Nd3 {[%clk 0:01:22.4]} 22. Nxd3 {[%clk 0:00:20.7]}
22... Bxd3 {[%clk 0:01:22.8]} 23. Rf2 {[%clk 0:00:17.2]} 23... Bxb2 {[%clk
0:01:18.4]} 24. Rxc6 {[%clk 0:00:15.7]} 24... Bxe4 {[%clk 0:01:15.8]} 25. Rxh6
{[%clk 0:00:11]} 25... Rd3 {[%clk 0:01:06.1]} 26. Bc2 {[%clk 0:00:09.3]} 26...
Re3 {[%clk 0:01:01.8]} 27. Bxe4 {[%clk 0:00:08.2]} 27... Rxe4 {[%clk 0:01:01.3]}
28. h3 {[%clk 0:00:05.6]} 28... Rb8 {[%clk 0:00:49.5]} 29. Ng3 {[%clk
0:00:04.6]} 29... Re1+ {[%clk 0:00:46.8]} 30. Kh2 {[%clk 0:00:04.6]} 30... Be5
{[%clk 0:00:45.2]} 31. Rh4 {[%clk 0:00:01.9]} 31... b3 {[%clk 0:00:40.2]} 32.
Rg4+ {[%clk 0:00:01.9]} 32... Kf8 {[%clk 0:00:39.6]} 0-1